{"text_format":"3","workbook":"xlsx","n_sheets":2,"sheets":["Portfolioanalyse","Portfoliokreisdiagramm"],"not_rendered":{"charts":2,"images":1,"defined_names":2},"unopened":[{"sheet":"Portfoliokreisdiagramm","index":1,"reason":"not_a_worksheet"}],"read":"whole","date_system":"1900"}

{"sheet":"Portfolioanalyse","index":0,"n_rows":9,"n_cols":11,"rows_kept":9,"merged":[[0,0,1,5],[0,6,0,8],[0,9,0,10],[1,6,1,8],[1,9,1,10],[2,0,3,5],[2,6,2,8],[2,9,2,10],[3,6,3,8],[3,9,3,10]]}
["Portfolioanalyse",{"$nulls":5},"Summe Kontenkosten",null,null,{"$f":"SUM(G6:G8)","v":null}]
[{"$nulls":6},"Kontenwert",null,null,{"$f":"SUM(I6:I8)","v":null}]
[{"$f":"TODAY()","v":null},{"$nulls":5},"Unrealisierter Gewinn/Verlust €",null,null,{"$f":"J2-J1","v":null}]
[{"$nulls":6},"Unrealisierter Gewinn/Verlust %",null,null,{"$f":"(J2/J1)-100%","v":null}]
["Name der Kapitalanlage","Name oder Nummer des Kontos","Symbol","Menge","Kaufpreis pro Anteil","Transaktionsgebühren","Gesamtkosten (Kaufpreis + Gebühren)","Aktuelle Notierung","Marktwert","Gewinn/Verlust (€)","Gewinn/Verlust (%)"]
["A. Datum Corporation","Woodgrove Bank","AAAA",100,{"v":49,"d":"49.00 €"},{"v":29,"d":"29.00 €"},{"$f":"([Menge]*[Kaufpreis pro Anteil])+[Transaktionsgebühren]","v":null},{"v":56.99,"d":"56.99 €"},{"$f":"[Menge]*[Aktuelle Notierung]","v":null},{"$f":"[Marktwert]-[Gesamtkosten (Kaufpreis + Gebühren)]","v":null},{"$f":"IF(ISERR([Marktwert]/[Gesamtkosten (Kaufpreis + Gebühren)]),\"\",([Marktwert]/[Gesamtkosten (Kaufpreis + Gebühren)])-100%)","v":null}]
["Adventure Works","Woodgrove Bank","AWAW",250,{"v":21.56,"d":"21.56 €"},{"v":13,"d":"13.00 €"},{"$f":"([Menge]*[Kaufpreis pro Anteil])+[Transaktionsgebühren]","v":null},{"v":19.13,"d":"19.13 €"},{"$f":"[Menge]*[Aktuelle Notierung]","v":null},{"$f":"[Marktwert]-[Gesamtkosten (Kaufpreis + Gebühren)]","v":null},{"$f":"IF(ISERR([Marktwert]/[Gesamtkosten (Kaufpreis + Gebühren)]),\"\",([Marktwert]/[Gesamtkosten (Kaufpreis + Gebühren)])-100%)","v":null}]
["Wingtip Toys","Woodgrove Bank","WWTT",1200,{"v":7.01,"d":"7.01 €"},{"v":26,"d":"26.00 €"},{"$f":"([Menge]*[Kaufpreis pro Anteil])+[Transaktionsgebühren]","v":null},{"v":7.56,"d":"7.56 €"},{"$f":"[Menge]*[Aktuelle Notierung]","v":null},{"$f":"[Marktwert]-[Gesamtkosten (Kaufpreis + Gebühren)]","v":null},{"$f":"IF(ISERR([Marktwert]/[Gesamtkosten (Kaufpreis + Gebühren)]),\"\",([Marktwert]/[Gesamtkosten (Kaufpreis + Gebühren)])-100%)","v":null}]
["Summe",{"$nulls":5},{"$f":"SUBTOTAL(109,[Gesamtkosten (Kaufpreis + Gebühren)])","v":null},null,{"$f":"SUBTOTAL(109,[Marktwert])","v":null},{"$f":"SUBTOTAL(109,[Gewinn/Verlust (€)])","v":null},{"$f":"Tabelle1[[#Totals],[Marktwert]]/Tabelle1[[#Totals],[Gesamtkosten (Kaufpreis + Gebühren)]]-100%","v":null}]